Workbook

Sheet lISTE
A5: CHEQUE
A6: VIREMENT
A7: PRELEVEMENT
A8: ESPECES

Sheet Janvier à Décembre
B1: RECETTES
B2: COMPTES | C2: LIBELLES DES COMPTES | D2: NUMERO DE LIGNE | E2: DATE | F2: DATE VALEUR | G2: CHEQUE ou VIREMENT | H2: NUMERO | I2: LIBELLES RECETTES | J2: MONTANTS
B3: 70710 | C3: VENTE DE MATERIEL SYNDICAL
I5: TOTAL VENTE DE MATERIEL SYNDICAL | J5: =SUM(J3:J4) -> 0
B6: 74110 | C6: AUTRE SUBVENTION PUBLIQUE
I8: TOTAL AUTRE SUBVENTION PUBLIQUE | J8: =SUM(J6:J7) -> 0
B9: 75000 | C9: AUTRE PRODUITS DE GESTION COURANTE
I11: TOTAL AUTRE PRODUITS DE GESTION COURANTE | J11: =SUM(J9:J10) -> 0
B12: 75400 | C12: COLLECTES DONS SOUSCRIPTIONS
I14: TOTAL COLLECTES DONS SOUSCRIPTIONS | J14: =SUM(J12:J13) -> 0
B15: 75600 | C15: COTISATION SYNDICAL | E15: 2023-02-14 | F15: 2023-02-14 | G15: Prélèvement | I15: COTISATIONS SYNDIQUES ECHEANCE DU 05/02/2023 | J15: 34
E16: 2023-02-14 | F16: 2023-02-14 | G16: Prélèvement | I16: COTISATIONS SYNDIQUES ECHEANCE DU 05/02/2023 | J16: 467.4
E17: 2023-04-05 | F17: 2023-04-05 | G17: Prélèvement | I17: COTISATIONS SYNDIQUES ECHEANCE DU 05/04/2023 | J17: 531.4
E18: 2023-05-10 | F18: 2023-05-11 | G18: CHEQUE | H18: REM CHQ REF08936R07 | I18: COTISATIONS SYNDIQUES Mehdi Ameziane Cheque n4410209 | J18: 130
E19: 2023-06-14 | F19: 2023-06-14 | G19: Prélèvement | I19: COTISATIONS SYNDIQUES ECHEANCE DU 05/06/2023 | J19: 531.4
E20: 2023-10-11 | F20: 2023-10-11 | G20: Prélèvement | I20: COTISATIONS SYNDIQUES ECHEANCE DU 05/10/2023 | J20: 531.4
E21: 2023-12-13 | F21: 2023-12-13 | G21: Prélèvement | I21: COTISATIONS SYNDIQUES ECHEANCE DU 05/12/2023 | J21: 496.5
E22: 2023-12-18 | F22: 2023-12-18 | G22: Prélèvement | I22: COTISATIONS SYNDIQUES ECHEANCE DU 05/12/2023 | J22: 24
I23: TOTAL DES COTISATIONS DES SYNDICAL | J23: =SUM(J15:J22) -> 2746.1
B24: 76100 | C24: VIREMENT COMPTE | E24: 2023-12-27 | F24: 2023-12-16 | G24: Virement | I24: VIREMENT DEPUIS LIVRET BLEU | J24: 500
I26: TOTAL VIREMENT COMPTE | J26: =SUM(J24:J25) -> 500
I27: TOTAL DES RECETTES | J27: =SUM(J26,J23,J14,J11,J8,J5) -> 3246.1
A28: DEPENSES
B29: 60440 | C29: FRAIS D'IMPRESSION/PHOTOCOPIES
I31: TOTAL FRAIS D'IMPRESSION/PHOTOCOPIES | J31: =SUM(J29:J30) -> 0
B32: 60500 | C32: ACHATS DE MATERIELS ET MOBILIER DE BUREAU
I34: TOTAL DES ACHATS DE MATERIELS ET MOBILIER DE BUREAU | J34: =SUM(J32:J33) -> 0
B35: 60640 | C35: FOURNITURES ADMINISTRATIVES
I37: TOTAL DES FOURNITURES ADMINISTRATIVES | J37: =SUM(J35:J36) -> 0
B38: 60710 | C38: MATERIEL SYNDICAL
I40: TOTAL MATERIEL SYNDICAL | J40: =SUM(J38:J39) -> 0
B41: 61600 | C41: ASSURANCES
I43: TOTAL ASSURANCES | J43: =SUM(J41:J42) -> 0
B44: 61810 | C44: DOCUMENTATION/ABONNEMENTS
I46: TOTAL DOCUMENTATION/ABONNEMENTS | J46: =SUM(J44:J45) -> 0
B47: 61860 | C47: FRAIS DE FORMATION | E47: 2023-03-14 | F47: 2023-03-13 | G47: CHEQUE | H47: 1050068 | I47: Formation CSD | J47: 90
E48: 2023-06-23 | F48: 2023-06-22 | G48: CHEQUE | H48: 1050073 | I48: Stage CST du 22,23 mai 2023 | J48: 630
I49: TOTAL FRAIS DE STAGE | J49: =SUM(J47:J48) -> 720
B50: 62240 | C50: HONORAIRES JURIDIQUES, AVOCATS
I52: TOTAL HONORAIRES JURIDIQUES, AVOCATS | J52: =SUM(J50:J51) -> 0
B53: 62380 | C53: SOLIDARITE/DONS (mutualisation CSD) | E53: 2023-04-19 | F53: 2023-04-18 | G53: CHEQUE | H53: 1050072 | I53: FD CGT des services public | J53: 1630.66
E54: 2023-06-23 | F54: 2023-06-22 | G54: CHEQUE | H54: 1050070 | I54: Mutualisation CSD | J54: 50
I56: TOTAL SOLIDARITE/DONS | J56: =SUM(J53:J55) -> 1680.66
B57: 62500 | C57: DEPLACEMENT
I59: TOTAL DES DEPLACEMENTS MISSION ET RECEPTION | J59: =SUM(J57:J58) -> 0
B60: 62530 | C60: FRAIS DE RECEPTIONS | E60: 2023-03-23 | F60: 2023-03-22 | G60: CHEQUE | H60: 1050069 | I60: Viennoiserie café et thé pour la formation interne du 14/03/23 | J60: 15.34
E61: 2023-11-28 | F61: 2023-11-27 | G61: CHEQUE | H61: 1050074 | I61: Confiserie et boisons | J61: 23.42
I62: TOTAL FRAIS DE RECEPTIONS | J62: =SUM(J60:J61) -> 38.76
B63: 62620 | C63: AFFRANCHISSEMENTS | E63: 2023-11-28 | F63: 2023-11-27 | G63: CHEQUE | H63: 1050074 | I63: Carnet timbre vert | J63: 13.92
I65: TOTAL DES AFFRANCJISSEMENTS | J65: =SUM(J63:J64) -> 13.92
B66: 62610 | C66: TELEPHONE / INTERNET
I68: TOTAL TELEPHONE / INTERNET | J68: =SUM(J66:J67) -> 0
B69: 62700 | C69: SERVICES BANCAIRES | E69: 2023-01-10 | F69: 2023-01-01 | G69: Prélèvement | H69: SGT23089360000059 | J69: 2
E70: 2023-02-10 | F70: 2023-02-01 | G70: Prélèvement | H70: SGT23089360000520 | J70: 2
E71: 2023-03-10 | F71: 2023-03-01 | G71: Prélèvement | H71: SGT23089360000971 | J71: 3.8
E72: 2023-04-10 | F72: 2023-04-01 | G72: Prélèvement | H72: SGT23089360001431 | J72: 2
E73: 2023-05-10 | F73: 2023-05-01 | G73: Prélèvement | H73: SGT23089360001883 | J73: 3.9
E74: 2023-06-12 | F74: 2023-06-04 | G74: Prélèvement | H74: SGT23089360002360 | J74: 3.7
E75: 2023-07-10 | F75: 2023-07-01 | G75: Prélèvement | H75: SGT23089360002845 | J75: 5.6
E76: 2023-08-10 | F76: 2023-08-01 | G76: Prélèvement | H76: SGT23089360003331 | J76: 2
E77: 2023-09-11 | F77: 2023-09-01 | G77: Prélèvement | H77: SGT23089360003808 | J77: 2
E78: 2023-10-10 | F78: 2023-12-01 | G78: Prélèvement | H78: SGT23089360004297 | J78: 2
E79: 2023-11-10 | F79: 2023-11-01 | G79: Prélèvement | H79: SGT23089360004846 | J79: 5.6
E80: 2023-12-11 | F80: 2023-12-01 | G80: Prélèvement | H80: SGT23089360005390 | J80: 2
I81: TOTAL SERVICES BANCAIRES | J81: =SUM(J69:J80) -> 36.6
B82: 62710 | C82: FRAIS TENUE DE COMPTE ET AGIOS | E82: 2023-05-18 | F82: 2023-05-18 | G82: Prélèvement | I82: IMP MME FONTAINE CONTESTATION | J82: 10
E83: 2023-06-13 | F83: 2023-06-14 | G83: Prélèvement | I83: IMP MME FONTAINE CONTESTATION | J83: 10
E84: 2024-10-10 | F84: 2024-10-11 | G84: Prélèvement | I84: IMP MME FONTAINE | J84: 10
I85: TOTAL FRAIS TENUE DE COMPTE ET AGIOS | J85: =SUM(J82:J84) -> 30
B86: 65000 | C86: AUTRES CHARGES DE GESTION COURANTE
I88: TOTAL AUTRES CHARGES DE GESTION COURANTE | J88: =SUM(J86:J87) -> 0
B89: 66200 | C89: VIREMENT ENTRE COMPTE
E90: 2023-04-03 | F90: 2023-04-16 | G90: Virement | I90: VIREMENT VERS LIVRET BLEU | J90: 500
I91: TOTAL VIREMENT ENTRE COMPTE | J91: =SUM(J89:J90) -> 500
C92: COMPTES D'IMMOBILISATION | I92: LIBELLES RECETTES | J92: MONTANTS
B93: 218300 | C93: MATERIEL DE BUREAU ET INFORMATIQUE (≥ 500€ unitaire)
I95: MATERIEL DE BUREAU ET INFORMATIQUE (≥ 500€ unitaire) | J95: =SUM(J93:J94) -> 0
I96: TOTAL DES DEPENSES | J96: =SUM(J31,J34,J37,J40,J43,J46,J49,J52,J56,J59,J95,J62,J65,J68,J81,J85,J88,J91) -> 3019.94
B97: Solde bancaire au 03 Janvier 2023 | C97: 1741.89
B98: RELEVE BANCAIRE
B99: RECAP MENSUEL | E99: Total recettes | F99: =SUM(J27) -> 3246.1
E100: Total dépenses | F100: =SUM(J96) -> 3019.94
B101: Solde bancaire au 03 Janvier 2024 | E101: solde | F101: =SUM(C97+F99-F100) -> 1968.05

Sheet Résultat simplifié
A1: COMPTE DE RESULTAT SIMPLIFIE
A3: COMPTES | B3: CHARGES | C3: N au 31/12/2022 | E3: COMPTES | F3: PRODUITS | G3: N au 31/12/2022 | I3: N-1 au 31/12/2021
B4: Charges d'exploitation | F4: Produits d'exploitation
A6: Achats | E6: Autres produits
A7: 60440 | B7: FRAIS D'IMPRESSION/PHOTOCOPIES | C7: =SUM(' Janvier à Décembre'!J31) -> 0 | E7: 70710 | F7: VENTE DE MATERIEL SYNDICAL | G7: =SUM(' Janvier à Décembre'!J5) -> 0
A8: 60500 | B8: ACHATS DE MATERIELS ET MOBILIER DE BUREAU | C8: =SUM(' Janvier à Décembre'!J34) -> 0
A9: 60640 | B9: FOURNITURES ADMINISTRATIVES | C9: =SUM(' Janvier à Décembre'!J37) -> 0
A10: 60710 | B10: MATERIEL SYNDICAL | C10: =SUM(' Janvier à Décembre'!J40) -> 0
A13: Autres charges externes | E13: Subventions
A14: 61600 | B14: ASSURANCES | C14: =SUM(' Janvier à Décembre'!J43) -> 0 | E14: 74110 | F14: AUTRE SUBVENTION PUBLIQUE | G14: =SUM(' Janvier à Décembre'!J8) -> 0
A15: 61810 | B15: DOCUMENTATION/ABONNEMENTS | C15: =SUM(' Janvier à Décembre'!J46) -> 0
A16: 61860 | B16: FRAIS DE STAGE | C16: =SUM(' Janvier à Décembre'!J49) -> 720
A19: Autres services exterieurs | E19: Cotisations
A20: 62260 | B20: HONORAIRES JURIDIQUES, AVOCATS | C20: =SUM(' Janvier à Décembre'!J52) -> 0 | E20: 75000 | F20: AUTRE PRODUITS DE GESTION COURANTE | G20: =SUM(' Janvier à Décembre'!J11) -> 0
A21: 62380 | B21: SOLIDARITE / DONS | C21: =SUM(' Janvier à Décembre'!J56) -> 1680.66 | E21: 75400 | F21: COLLECTES DONS SOUSCRIPTIONS | G21: =SUM(' Janvier à Décembre'!J14) -> 0
A22: 62500 | B22: DEPLACEMENT MISSION ET RECEPTION | C22: =SUM(' Janvier à Décembre'!J59) -> 0 | E22: 75600 | F22: COTISATION SYNDICAL | G22: =SUM(' Janvier à Décembre'!J23) -> 2746.1
A23: 62530 | B23: FRAIS DE RECEPTIONS | C23: =SUM(' Janvier à Décembre'!J62) -> 38.76
A24: 62610 | B24: AFFRANCHISSEMENTS | C24: =SUM(' Janvier à Décembre'!J65) -> 13.92
A25: 62620 | B25: TELEPHONE/INTERNET | C25: =SUM(' Janvier à Décembre'!J68) -> 0
A26: 62700 | B26: SERVICES BANCAIRES | C26: =SUM(' Janvier à Décembre'!J81) -> 36.6
A27: 62710 | B27: FRAIS TENUE DE COMPTE ET AGIOS | C27: =SUM(' Janvier à Décembre'!J85) -> 30
A29: AUTRES CHARGES DE GESTION COURANTE | E29: Transfert de charges
A30: 65000 | B30: AUTRES CHARGES DE GESTION COURANTE | C30: =SUM(' Janvier à Décembre'!J88) -> 0 | E30: 761000 | F30: VIREMENT COMPTE | G30: =SUM(' Janvier à Décembre'!J26) -> 500
A34: 66200 | B34: VIREMENT ENTRE COMPTE | C34: =SUM(' Janvier à Décembre'!J91) -> 500
A36: Comptes d'Immobilisation
A37: 21830 | B37: MATERIEL DE BUREAU ET INFORMATIQUE (≥ 500€ unitaire) | C37: =SUM(' Janvier à Décembre'!J95) -> 0
B38: TOTAL CHARGES | C38: =SUM(C7:C37) -> 3019.94 | F38: TOTAL PRODUITS | G38: =SUM(G7:G37)+I38 -> 4987.99 | H38: TOTAL N-1 | I38: =SUM(' Janvier à Décembre'!C97) -> 1741.89
B39: Prévision | F39: Prévision
A40: Si le résultat est positif (EXCEDENT) | D40: N | E40: =SUM(G38-C38) -> 1968.05
A41: Si le résultat est négatif (DEFICIT ) (-) | D41: N-1

Sheet COMPTES SIMPLIFIER FD
B2: Publication des comptes 2023 SAINT EGREVE TERRITORIAUX MAIRIE 0LL9U | C2: Publication des comptesSAINT EGREVE TERRITORIAUX MAIRIE 0LL9U PDF | D2: Publication des comptesSAINT EGREVE TERRITORIAUX MAIRIE 0LL9U PDF | E2: Publication des comptesSAINT EGREVE TERRITORIAUX MAIRIE 0LL9U PDF | F2: Publication des comptesSAINT EGREVE TERRITORIAUX MAIRIE 0LL9U PDF | G2: Publication des comptesSAINT EGREVE TERRITORIAUX MAIRIE 0LL9U PDF | H2: Publication des comptesSAINT EGREVE TERRITORIAUX MAIRIE 0LL9U PDF | I2: Publication des comptesSAINT EGREVE TERRITORIAUX MAIRIE 0LL9U PDF
B5: Bilan simplifié avant répartition des organisations syndicales livret bleu
B6: Actif | C6: N | G6: Passif | H6: N | I6: N-1
C7: Brute | D7: Amortissement et dépréciation | E7: Net | F7: Net
B8: Actif immobilisé (1) | G8: Fonds syndicaux | I8: 818.3
B9: Actif incorporel | G9: Réserves
B10: Actif corporel | G10: Report à nouveau
B11: Actif financier | G11: Résultat
F12: 33.87 | G12: Total ( 1 )
B13: Actif circulantant (2) | G13: Provisions ( 2 )
B14: Stock et fournitures | G14: Fonds dédiés ( 3 )
B15: Créances | G15: Dettes financières
B16: Disponibilités (3) | G16: dettes diverses
G17: Total ( 4 )
B18: Comptes de régularisation (4) | C18: 500 | F18: 500 | G18: Comptes de régularisation ( 5 )
B19: Total ( 1 + 2 + 3 + 4 ) | C19: =SUM(I8+F19-G52)-C18 -> 852.17 | D19: 0 | E19: 0 | F19: =SUM(F8:F18) -> 533.87 | G19: Total ( 1 )+( 2 )+( 3 )+( 4 )+( 5 ) | H19: 0 | I19: 0
B21: Compte de résultat simplifié des organisations syndicales Compte association
B22: Charges | C22: Exercices N | D22: Exercices N-1 | E22: Produits | F22: Exercice N | G22: Exercice N-1
B23: Charges d'exploitation (1) | E23: Produits d'exploitation (1) | G23: =SUM('Résultat simplifié'!I38) -> 1741.89
B24: Achats | C24: =SUM('Résultat simplifié'!C7:C12) -> 0 | E24: Cotisations nettes | F24: =SUM('Résultat simplifié'!G20:G26) -> 2746.1
B25: Autres charges externe | C25: =SUM('Résultat simplifié'!C14:C18) -> 720 | E25: Subventions | F25: =SUM('Résultat simplifié'!G14:G17) -> 0
B26: Autres services extérieurs | C26: =SUM('Résultat simplifié'!C20:C28) -> 1799.94 | E26: Autres produits | F26: =SUM('Résultat simplifié'!G7:G8) -> 0
B27: Impôts et taxes | E27: Transfert de charges | F27: =SUM('Résultat simplifié'!G30) -> 500
B28: Charges personnel | E28: Reprises des amortissements et provisions
B29: Autres charges | C29: =SUM('Résultat simplifié'!C30:C37) -> 500
B30: Dotation aux amortissements et prévision
B31: Charges financières (2) | E31: Produits financiers (2)
B32: Charges exceptionnelles (3) | E32: Produits exceptionnels (3)
B33: Engagements à réaliser sur contribution de financement (4) | E33: Contributions de financement - Report des ressources non utilisées des exercices antérieurs (4)
B34: Total (1+2+3+4) | C34: =SUM(C24:C33) -> 3019.94 | E34: Total (1+2+3+4) | F34: =SUM(F23:F33) -> 3246.1
B35: Solde créditeur : excédent | C35: =SUM(F34+G23-C34) -> 1968.05 | E35: Solde débiteur : déficit
B38: Annexe : tableau des ressources
B39: Cotisations nettes | C39: =SUM(F24) -> 2746.1
B40: Subventions | C40: =SUM(F25) -> 0
B41: Autres produits | C41: =SUM(F26) -> 0
B42: Produits financiers | C42: =SUM(F31) -> 0
B43: TOTAL | C43: =SUM(C39:C42) -> 2746.1

Sheet Tableau simplifié
A2: COMPTE | B2: CHARGES | C2: Prév 2018 | D2: Réalisé 2018 | E2: 2019 Prév | F2: 2019 Prév | G2: Prévisionnel2022 | H2: Réalisé 2022
A3: 60440 | B3: FRAIS D'IMPRESSION / PHOTOCOPIES | C3: 800 | D3: 923.42 | E3: 1000 | F3: 100 | G3: 0 | H3: =SUM('Résultat simplifié'!C7) -> 0
A4: 60500 | B4: ACHATS DE MATERIELS ET MOBILIER DE BUREAU | C4: 0 | D4: 8418 | E4: 0 | F4: 2162.8 | G4: 0 | H4: =SUM(' Janvier à Décembre'!J34) -> 0
A5: 60640 | B5: ACHATS DE FOURNITURES ADMINISTRATIVES | C5: 100 | D5: 99.16 | E5: 100 | F5: 50 | G5: 0 | H5: =SUM(' Janvier à Décembre'!J37) -> 0
A6: 60710 | B6: MATERIEL SYNDICAL | C6: 0 | D6: 597.41 | E6: 0 | F6: 0 | G6: 0 | H6: =SUM('Résultat simplifié'!C10) -> 0
A7: 61600 | B7: ASSURANCES | C7: 1500 | D7: 1135.24 | E7: 2000 | F7: 2033.62 | G7: 0 | H7: =SUM('Résultat simplifié'!C12+'Résultat simplifié'!C14) -> 0
A8: 61810 | B8: DOCUMENTATION / ABONNEMENTS | C8: 110 | D8: 60 | E8: 160 | F8: 170 | G8: 0 | H8: =SUM('Résultat simplifié'!C15) -> 0
A9: 61860 | B9: FRAIS DE STAGE | C9: 0 | D9: 100 | E9: 100 | F9: 0 | G9: 0 | H9: =SUM('Résultat simplifié'!C16) -> 720
A10: 62240 | B10: HONORAIRES JURIDIQUES AVOCATS | C10: 8000 | D10: 8278.93 | E10: 10000 | F10: 5000 | G10: 0 | H10: =SUM('Résultat simplifié'!C20) -> 0
A11: 62380 | B11: SOLIDARITE / DONS | G11: 0 | H11: =SUM('Résultat simplifié'!C21) -> 1680.66
A12: 62500 | B12: DEPLACEMENT MISSION | C12: 10440 | D12: 4329.53 | E12: 18296 | F12: 18296 | G12: 0 | H12: =SUM('Résultat simplifié'!C22) -> 0
A13: 62530 | B13: FRAIS DE RECEPTIONS | C13: 15700 | D13: 14868.2 | E13: 8000 | F13: 6000 | G13: 0 | H13: =SUM('Résultat simplifié'!C23) -> 38.76
A14: 62610 | B14: AFFRANCHISSEMENT | C14: 500 | D14: 156.6 | E14: 500 | F14: 0 | G14: 0 | H14: =SUM('Résultat simplifié'!C24) -> 13.92
A15: 62610 | B15: TELEPHONE / INTERNET | C15: 0 | D15: 406 | E15: 0 | F15: 0 | G15: 0 | H15: =SUM('Résultat simplifié'!C25) -> 0
A16: 62700 | B16: SERVICES BANCAIRES | C16: 300 | D16: 185.11 | E16: 300 | F16: 156.22 | G16: 0 | H16: =SUM('Résultat simplifié'!C26) -> 36.6
A17: 62710 | B17: FRAIS TENUE DE COMPTE ET AGIOS | C17: 700 | D17: 664.62 | E17: 700 | F17: 700 | G17: 0 | H17: =SUM('Résultat simplifié'!C27) -> 30
A18: 65000 | B18: AUTRES CHARGES DE GESTION COURANTE | C18: 30 | D18: 46.32 | E18: 30 | F18: 33.5 | G18: 0 | H18: =SUM('Résultat simplifié'!C30) -> 0
A19: 66200 | B19: VIREMENT ENTRE COMPTE | C19: 0 | D19: 0 | E19: 0 | F19: 0 | G19: 0 | H19: =SUM('Résultat simplifié'!C34) -> 500
A20: 21830 | B20: MATERIEL DE BUREAU ET INFORMATIQUE (≥ 500€ unitaire) | C20: 0 | D20: 9056.7 | E20: 0 | F20: 0 | G20: 0 | H20: =SUM(' Janvier à Décembre'!J95) -> 0
B21: TOTAL DES DEPENSES GENERALES | C21: =SUM(C3:C20) -> 38180 | D21: 49325.24 | E21: 41186 | F21: 34702.14 | G21: 0 | H21: 3019.94
A23: COMPTE | B23: PRODUITS | C23: Prév 2018 | D23: Réalisé 2018 | E23: Prév 2019 | F23: Prév 2019 | G23: Prévisionnel 2022 | H23: Réalisé 2022
B24: N-1 | D24: 5327.24 | E24: 3333.45 | F24: 3333.45 | G24: 0 | H24: =SUM('Résultat simplifié'!I38) -> 1741.89
A25: 70710 | B25: VENTE DE MATERIEL SYNDICAL | C25: 10440 | D25: 6300 | E25: 35700 | F25: 35700 | G25: 0 | H25: =SUM('Résultat simplifié'!G7) -> 0
A26: 74110 | B26: AUTRE SUBVENTION PUBLIQUE | C26: 500 | D26: 0 | E26: 500 | F26: 228 | G26: 0 | H26: =SUM('Résultat simplifié'!G14) -> 0
A27: 75000 | B27: AUTRE PRODUITS DE GESTION COURANTE | C27: 5727 | D27: 5727 | E27: 5727 | F27: 5020 | G27: 0 | H27: =SUM('Résultat simplifié'!G20) -> 0
A28: 75400 | B28: COLLECTES DONS SOUSCRIPTIONS | C28: 0 | D28: 8400 | E28: 0 | F28: 0 | G28: 0 | H28: =SUM('Résultat simplifié'!G21) -> 0
A29: 75600 | B29: COTISATION SYNDICAL | C29: 0 | D29: 0 | E29: 0 | F29: 0 | G29: 0 | H29: =SUM('Résultat simplifié'!G22) -> 2746.1
A30: 76100 | B30: VIREMENT COMPTE | C30: 0 | D30: 9094.7 | E30: 0 | F30: 0 | G30: 0 | H30: =SUM('Résultat simplifié'!G30) -> 500
B31: TOTAL DES RECETTES GENERALES | C31: =SUM(C24:C30) -> 16667 | D31: 34848.94 | E31: 45260.45 | F31: 44281.45 | G31: 0 | H31: 4987.99
B33: RESTE SUR LE COMPTE COURANT | H33: =SUM(H31+A33-H21) -> 1968.05
... 1 more rows
